Cogmind - Beta 13 @@@ ROGUE MODE // 2024.04.03 @ 09:36:05 Player: iromakkem Result: Destroyed by B-75 Beast with Magnetic Acceleration Cannon Performance ------------- Evolutions (1) 500 Regions Visited (6) 1200 Robots Destroyed (31) 155 Value Destroyed (569) 569 Prototype IDs (4) 80 Alien Tech Used (0) 0 Bonus (763) 763 TOTAL SCORE: 3267 Bonus ------- Follower Combat Kills 180 Met Imprinter 300 Was Imprinted 300 Friendly Fire -17 Cogmind --------- Core Integrity 0/400 Matter 286/300 Energy 81/280 System Corruption 3% Temperature Cool (50) Movement Walking (190) Ox1 Location -6/Proximity Caves Parts ------- > --- POWER (1) -------- Heavy Ion Engine > --- PROPULSION (2) --- Flexi-carbon Leg > --- UTILITY (4) ------ Large Storage Unit Seismic Detector Trap Extractor (0/4) > --- WEAPON (2) ------- (None) > --- INVENTORY (15) --- Heavy Ion Engine Cooling System Seismic Detector Heavy Armor Plating Hacking Suite Heavy Riot Gun Heavy Riot Gun Heavy Riot Gun Mini Grenade Launcher RU-N14's Throwing Claymores (2) Peak State ------------ > --- POWER ------------ Heavy Ion Engine > --- PROPULSION ------- Aluminum Leg Improved Aluminum Leg > --- UTILITY ---------- Large Storage Unit Seismic Detector Particle Charger Trap Extractor > --- WEAPON ----------- Beam Cannon RU-N14's Throwing Claymores > --- INVENTORY -------- Heavy Ion Engine Heavy Ion Engine Cooling System Seismic Detector Heavy Armor Plating Hacking Suite Heavy Riot Gun Heavy Riot Gun Heavy Riot Gun Heavy Riot Gun Mini Grenade Launcher RU-N14's Throwing Claymores RU-N14's Throwing Claymores [Rating: 26] Favorites ----------- Power Heavy Ion Engine Engine Heavy Ion Engine Propulsion Aluminum Leg Treads Improved Treads Leg Aluminum Leg Utility Seismic Detector Device Seismic Detector Storage Large Storage Unit Weapon Beam Cannon Energy Gun Medium Laser Energy Cannon Beam Cannon Ballistic Gun Heavy Assault Rifle Special Weapon RU-N14's Throwing Claymores Build | -11 -10 -10 -9 -9 -7 -6 ------- Run | Yrd Mat Min Mat Min Zio Pro Slots Evolved 2 | . . . 2 . . . Power . | . . . . . . . Propulsion . | . . . . . . . Utility 2 | . . . 2 . . . Weapon . | . . . . . . . Parts Attached 47 | 7 14 . 15 . 3 8 Power 7 | 1 2 . 2 . 1 1 Engine 7 | 1 2 . 2 . 1 1 Core . | . . . . . . . Reactor . | . . . . . . . Propulsion 13 | 2 4 . 3 . 1 3 Treads 4 | 2 2 . . . . . Leg 9 | . 2 . 3 . 1 3 Wheel . | . . . . . . . Hover . | . . . . . . . Flight . | . . . . . . . Utility 11 | 1 5 . 4 . . 1 Device 6 | . 2 . 3 . . 1 Storage 5 | 1 3 . 1 . . . Processor . | . . . . . . . Hackware . | . . . . . . . Protection . | . . . . . . . Artifact . | . . . . . . . Weapon 16 | 3 3 . 6 . 1 3 Energy Gun 6 | 2 2 . 1 . . 1 Energy Cannon 4 | . 1 . 2 . . 1 Ballistic Gun 4 | 1 . . 3 . . . Ballistic Cannon . | . . . . . . . Launcher . | . . . . . . . Special Weapon 2 | . . . . . 1 1 Impact Weapon . | . . . . . . . Slashing Weapon . | . . . . . . . Piercing Weapon . | . . . . . . . Special Melee Weapon . | . . . . . . . Unidentified Prototypes 2 | . . . 1 . 1 . Corrupted Parts 1 | . . . . . . 1 System Corruption 3 | . . . . . . 3 Parts Lost 7 | . . . 1 . . 6 Power 1 | . . . . . . 1 Propulsion 3 | . . . 1 . . 2 Utility 1 | . . . . . . 1 Weapon 2 | . . . . . . 2 Highest Loss Streak 6 | . . . 1 . . 6 To Critical Strikes . | . . . . . . . Average Slot Usage (%) 99 | . 95 100 99 100 100 99 Engine 11 | . 13 14 11 11 11 11 Treads 1 | . 7 28 2 . . . Leg 20 | . 19 . 19 22 22 21 Device 30 | . 12 14 32 33 33 32 Storage 11 | . 14 14 11 11 11 11 Energy Gun 2 | . 18 14 . . . . Energy Cannon 10 | . 4 14 11 11 11 11 Ballistic Gun 3 | . 3 . 9 11 1 . Special Weapon 6 | . . . . . 9 10 Naked Turns . | . . . . . . . Heaviest Build 45 | 12 21 21 38 38 43 45 Greatest Support 46 | 40 46 46 46 20 20 23 Greatest Overweight (x) 4 | 2 4 . 3 1 2 4 Average Overweight (x) 1 | . . . . 1 1 1 Largest Inventory Capacity 15 | 8 10 10 15 15 15 15 Average Capacity 14 | 7 8 10 14 15 15 15 Most Carried 15 | 6 10 10 15 15 15 15 Average Carried 13 | 3 7 10 13 15 14 14 Final Capacity 15 | 8 10 10 15 15 15 15 Final Carried 15 | 4 10 10 15 15 15 11 Class Distribution -------------------- 100% | Mutant Dominant Class ---------------- Mutant | -10/Materials Mutant | -10/Mines Mutant | -9/Materials Mutant | -9/Mines Mutant | -7/Zion Mutant | -6/Proximity Caves Resources | -11 -10 -10 -9 -9 -7 -6 ----------- Run | Yrd Mat Min Mat Min Zio Pro Matter Collected 700 | 203 119 39 265 . 33 41 Remotely . | . . . . . . . Salvage Created 783 | . 66 39 596 . . 82 Parts 49 | . 6 4 37 . . 2 Haulers Intercepted 2 | . 1 . 1 . . . Recyclers Shooed 2 | . . . 2 . . . Parts Field Recycled . | . . . . . . . Retrieved Matter . | . . . . . . . Parts Self-Destructed 8 | . . . . . . 8 Prevented 6 | . . . . . . 6 Kills | -11 -10 -10 -9 -9 -7 -6 ------- Run | Yrd Mat Min Mat Min Zio Pro Combat Hostiles Destroyed 23 | . . 3 17 . . 3 Guns 11 | . . 2 9 . . . Cannons 9 | . . 1 8 . . . AOE 3 | . . . . . . 3 Classes Destroyed 10 | . 3 1 6 . . . Worker 2 | . 1 . 1 . . . Builder 1 | . 1 . . . . . Hauler 2 | . 1 . 1 . . . Recycler 1 | . . . 1 . . . Operator 1 | . . . 1 . . . Watcher 1 | . . . 1 . . . Swarmer 15 | . . 3 11 . . 1 Grunt 4 | . . . 3 . . 1 Duelist 1 | . . . 1 . . . Sentry 3 | . . . 2 . . 1 Best Kill Streak 4 | . 1 2 4 . . 3 Combat Bots Only 4 | . . 2 4 . . 3 Max Kills in Single Turn 3 | . 1 1 1 . . 3 Gunslinging . | . . . . . . . Exploded 3 | . . . . . . 3 Melee . | . . . . . . . Uniques/NPCs Destroyed . | . . . . . . . Combat | -11 -10 -10 -9 -9 -7 -6 -------- Run | Yrd Mat Min Mat Min Zio Pro Hostile Shots Fired 228 | . . 46 92 . . 90 Missed 70 | . . 10 24 . . 36 Damage Taken 2093 | . . 284 762 . . 1047 Core 490 | . . 59 160 . . 271 Absorbed by Shields . | . . . . . . . Core Remaining (%) 88 | 100 . 76 . . . . Volleys Fired 97 | . 14 12 61 . . 10 Largest 2 | . 2 2 2 . . 2 Hottest 125 | . 90 110 125 . . 120 Shots Fired 184 | . 26 21 119 . . 18 Gun 100 | . 26 12 58 . . 4 Cannon 80 | . . 9 61 . . 10 Launcher . | . . . . . . . Special 4 | . . . . . . 4 Kinetic 57 | . 4 . 53 . . . Thermal 119 | . 22 21 66 . . 10 Explosive 4 | . . . . . . 4 Electromagnetic 4 | . . . . . . 4 Robot Hit Streak 15 | . 3 4 15 . . 6 Robot Miss Streak 6 | . 6 3 5 . . 4 Penetration Max . | . . . . . . . Secondary Targets . | . . . . . . . Shots Hit Robots 104 | . 10 11 70 . . 13 Core Hits 41 | . 4 2 28 . . 7 Critical Kills . | . . . . . . . Critical Parts Destroyed . | . . . . . . . Critical Strikes 4 | . 1 2 1 . . . Burn 4 | . 1 2 1 . . . Melee Attacks . | . . . . . . . Impact . | . . . . . . . Slashing . | . . . . . . . Piercing . | . . . . . . . Sneak Attacks . | . . . . . . . Combat Hostiles . | . . . . . . . Follow-up Attacks . | . . . . . . . Damage Inflicted 2154 | . 140 161 1048 . . 805 Guns 640 | . 119 74 403 . . 44 Cannons 850 | . . 87 611 . . 152 Explosions 491 | . . . . . . 491 Melee . | . . . . . . . Ramming 55 | . 21 . 34 . . . Kinetic 360 | . 12 . 348 . . . Thermal 1086 | . 107 161 666 . . 152 Explosive 491 | . . . . . . 491 Electromagnetic 44 | . . . . . . 44 Impact . | . . . . . . . Slashing 118 | . . . . . . 118 Piercing . | . . . . . . . Highest Corruption 3 | . . . . . . 3 Average Corruption 3 | . . . . . . 3 Corruption Purged . | . . . . . . . Corruption Blocked . | . . . . . . . Overload Shots . | . . . . . . . Overflow Damage 24 | . . 16 8 . . . Projectiles 24 | . . 16 8 . . . Explosions . | . . . . . . . Melee . | . . . . . . . Knockbacks 1 | . 1 . . . . . Impact 1 | . 1 . . . . . Kinetic . | . . . . . . . Secondary . | . . . . . . . Self-Inflicted Damage . | . . . . . . . Shots . | . . . . . . . Rammed 2 | . 2 . . . . . Targets Rammed 14 | . 5 . 9 . . . Kicked 11 | . 2 . 9 . . . Crushed 1 | . 1 . . . . . Highest Temperature 373 | . 120 373 37 . . 168 Average Temperature 65 | . 40 189 12 . . 59 Received Heat Transfer 228 | . . . 117 . . 111 Effects 3 | . . 3 . . . . Shutdowns 1 | . . 1 . . . . Energy Bleed 2 | . . 2 . . . . Siege Activations . | . . . . . . . Robots Corrupted . | . . . . . . . Combat Hostiles . | . . . . . . . Parts Fried . | . . . . . . . Impact Corruptions . | . . . . . . . Robots Melted . | . . . . . . . Combat Hostiles . | . . . . . . . Parts Melted 4 | . 1 2 1 . . . Heat Transferred 2703 | . 335 555 1517 . . 296 Parts Sabotaged . | . . . . . . . Parts Stolen . | . . . . . . . Parts Stripped . | . . . . . . . Power Chain Reactions . | . . . . . . . Alert | -11 -10 -10 -9 -9 -7 -6 ------- Run | Yrd Mat Min Mat Min Zio Pro Peak Influence 297 | . 78 70 297 97 . . Initial 97 | . . . 27 97 . . Average 110 | . 45 53 150 97 . . Maximum Alert Level 1 | . . . 1 . . . Low Security (%) 85 | 100 100 100 75 100 . . Level 1 14 | . . . 24 . . . Level 2 . | . . . . . . . Level 3 . | . . . . . . . Level 4 . | . . . . . . . Level 5 . | . . . . . . . High Security . | . . . . . . . Max Security . | . . . . . . . Squads Dispatched . | . . . . . . . Investigation . | . . . . . . . Extermination . | . . . . . . . Reinforcement . | . . . . . . . Assault . | . . . . . . . Garrison . | . . . . . . . Intercept . | . . . . . . . Searches Triggered . | . . . . . . . Construction Impeded . | . . . . . . . Haulers Reinforced . | . . . . . . . Active Scanning Responses . | . . . . . . . Cargo Convoy Interrupts . | . . . . . . . Stealth | -11 -10 -10 -9 -9 -7 -6 --------- Run | Yrd Mat Min Mat Min Zio Pro Distress Signals 4 | . . . 4 . . . Communications Jammed . | . . . . . . . Distress Signals . | . . . . . . . Times Spotted 48 | . 3 6 31 . . 8 Peak Tracking Total 4 | . 2 3 4 . . 4 Tactical Retreats 2 | . . . 2 . . . Traps | -11 -10 -10 -9 -9 -7 -6 ------- Run | Yrd Mat Min Mat Min Zio Pro Traps Triggered 3 | . 3 . . . . . Indirectly . | . . . . . . . Trap Hack Attempts . | . . . . . . . Triggered . | . . . . . . . Disarmed . | . . . . . . . Reprogrammed . | . . . . . . . Reused . | . . . . . . . Traps Extracted . | . . . . . . . Installed . | . . . . . . . Triggered . | . . . . . . . Machines | -11 -10 -10 -9 -9 -7 -6 ---------- Run | Yrd Mat Min Mat Min Zio Pro Machines Disabled 4 | . . . . . . 4 Max in Single Turn 1 | . . . . . . 1 Machines Repaired . | . . . . . . . Machines Dismantled . | . . . . . . . Machines Sabotaged . | . . . . . . . Overloaded Fab Kills . | . . . . . . . Hacking | -11 -10 -10 -9 -9 -7 -6 --------- Run | Yrd Mat Min Mat Min Zio Pro Machines Accessed 7 | . 4 . 3 . . . Terminals 5 | . 4 . 1 . . . Fabricators . | . . . . . . . Repair Stations . | . . . . . . . Recycling Units 1 | . . . 1 . . . Scanalyzers 1 | . . . 1 . . . Garrison Access . | . . . . . . . Total Hacks 21 | . 10 . 11 . . . Successful 9 | . 5 . 4 . . . Failed 12 | . 5 . 7 . . . Catastrophic 1 | . 1 . . . . . Database Lockouts . | . . . . . . . Manual . | . . . . . . . Terminals 13 | . 10 . 3 . . . Fabricators . | . . . . . . . Repair Stations . | . . . . . . . Recycling Units 2 | . . . 2 . . . Scanalyzers 6 | . . . 6 . . . Garrison Access . | . . . . . . . Terminal Hacks 5 | . 5 . . . . . Record 1 | . 1 . . . . . Prototype ID Bank 1 | . 1 . . . . . Locate Traps 2 | . 2 . . . . . Hauler Manifests 1 | . 1 . . . . . Fabricator Hacks . | . . . . . . . Repair Station Hacks . | . . . . . . . Recycling Unit Hacks 2 | . . . 2 . . . Report Inventory 1 | . . . 1 . . . Retrieve Components 1 | . . . 1 . . . Scanalyzer 2 | . . . 2 . . . Insert Component 1 | . . . 1 . . . Analyze 1 | . . . 1 . . . Garrison Access Hacks . | . . . . . . . Unauthorized Hacks . | . . . . . . . Terminals . | . . . . . . . Fabricators . | . . . . . . . Repair Stations . | . . . . . . . Recycling Units . | . . . . . . . Scanalyzers . | . . . . . . . Garrison Access . | . . . . . . . Data Cores Recovered 1 | . . . 1 . . . Used . | . . . . . . . Hacking Detections 6 | . 3 . 3 . . . Full Trace Events 3 | . 2 . 1 . . . Feedback Events . | . . . . . . . Feedback Blocked . | . . . . . . . Robot Schematics Acquired . | . . . . . . . Robots Built . | . . . . . . . Authchips . | . . . . . . . Time . | . . . . . . . Total Robot Build Rating . | . . . . . . . Part Schematics Acquired 1 | . . . 1 . . . Parts Built . | . . . . . . . Authchips . | . . . . . . . Time . | . . . . . . . Total Part Build Rating . | . . . . . . . Parts Repaired . | . . . . . . . Time . | . . . . . . . Parts Recycled . | . . . . . . . Recycled Matter . | . . . . . . . Retrieved Matter . | . . . . . . . Retrieved Components 9 | . . . 9 . . . Parts Scanalyzed 1 | . . . 1 . . . Part Schematics Acquired 1 | . . . 1 . . . Parts Damaged . | . . . . . . . Bothacking | -11 -10 -10 -9 -9 -7 -6 ------------ Run | Yrd Mat Min Mat Min Zio Pro Used RIF Installer . | . . . . . . . Robots Hacked . | . . . . . . . Non-combat . | . . . . . . . Combat . | . . . . . . . Robot Hacks Applied . | . . . . . . . Relay Couplers Released . | . . . . . . . Fabnet Peak Effective % . | . . . . . . . Robots Rewired . | . . . . . . . Allies Hacked . | . . . . . . . Hacks Repelled . | . . . . . . . Allies | -11 -10 -10 -9 -9 -7 -6 -------- Run | Yrd Mat Min Mat Min Zio Pro Total Allies 4 | . . . . . 4 . Largest Group 4 | . . . . . 4 4 Highest-Rated Group 156 | . . . . . 156 156 Highest-Rated Ally 41 | . . . . . 41 41 Total Orders . | . . . . . . . Ally Attacks 16 | . . . . . . 16 Total Damage 923 | . . . . . . 923 Kills 6 | . . . . . . 6 Allies Corrupted . | . . . . . . . Allies Melted . | . . . . . . . Intel | -11 -10 -10 -9 -9 -7 -6 ------- Run | Yrd Mat Min Mat Min Zio Pro Robot Analysis Total . | . . . . . . . Derelict Logs Recovered 4 | . . . . 1 2 1 Drone Launches . | . . . . . . . Drone Recoveries . | . . . . . . . Exploration | -11 -10 -10 -9 -9 -7 -6 ------------- Run | Yrd Mat Min Mat Min Zio Pro Turns Passed 5548 | 64 471 85 1096 168 2393 1271 Spaces Moved 2419 | 33 251 33 457 89 962 594 Core 26 | 16 10 . . . . . Treads 165 | 17 67 33 48 . . . Legs 2228 | . 174 . 409 89 962 594 Wheels . | . . . . . . . Hover . | . . . . . . . Flight . | . . . . . . . Fastest Speed 50 | 50 100 160 160 190 190 190 Average Speed 210 | 143 155 160 187 190 244 206 Slowest Speed 400 | 160 250 160 330 190 260 400 Overloaded Moves . | . . . . . . . Propulsion Burnouts . | . . . . . . . Robots Hopped . | . . . . . . . Cave-ins Triggered . | . . . . . . . Exploration Rate (%) 34 | 3 39 12 34 16 85 50 Regions Visited 6 Branch Regions 4 Pre-discovered Areas 1 | . . . . . 1 . Known Exits Taken . | . . . . . . . Unknown Exits Taken 6 | 1 1 1 1 1 1 . Scrap Searched 2 | . . . . . 1 1 Spaces Dug . | . . . . . . . Terrain Destroyed 20 | . . . . . . 20 Melee . | . . . . . . . Projectile . | . . . . . . . AOE 20 | . . . . . . 20 Terrain Rammed . | . . . . . . . Walls Destroyed . | . . . . . . . Machines Disabled . | . . . . . . . Actions | -11 -10 -10 -9 -9 -7 -6 --------- Run | Yrd Mat Min Mat Min Zio Pro Total 2693 | 49 302 44 582 88 1004 624 Wait 42 | . . . 12 . 30 . Move 2413 | 32 250 32 456 88 961 594 Hop . | . . . . . . . Pick Up 51 | 10 16 . 16 . 4 5 Fast Attach 7 | . 1 . 3 . 1 2 Attach 29 | 6 8 . 7 . 2 6 Detach . | . . . . . . . Swap 11 | 1 5 . 5 . . . Drop 29 | . 3 . 13 . 6 7 Fire 97 | . 14 12 61 . . 10 Melee . | . . . . . . . Ram . | . . . . . . . Kick 11 | . 2 . 9 . . . Crush 3 | . 3 . . . . . Escape Stasis . | . . . . . . . Rewire . | . . . . . . . Trap . | . . . . . . . Miscellaneous . | . . . . . . . Route ------- -11/Scrapyard -10/Materials -10/Mines -9/Materials -9/Mines (discovered 2 exits: Mat / *Zio) -7/Zion -6/Proximity Caves (discovered 1 exit: Fac) History --------- Turn | Location | Event 2 | -11/Scrapyard | Met Revision 17 12 | -11/Scrapyard | Discovered new exit (range 16) 65 | -11/Scrapyard | Entered Materials 316 | -10/Materials | Build established: Mutant 514 | -10/Materials | Discovered new exit (range 6) 536 | -10/Materials | Entered Mines 609 | -10/Mines | Discovered new exit (range 8) 621 | -10/Mines | Entered Materials 621 | -9/Materials | Evolved 2 slots: Utility x2 1657 | -9/Materials | Discovered new exit (range 15) 1717 | -9/Materials | Entered Mines 1735 | -9/Mines | Identified exit to Materials 1869 | -9/Mines | A Derelict revealed a hidden shortcut to a safe place 1885 | -9/Mines | Entered Zion 1991 | -7/Zion | Learned location of 1 exit from Proximity Caves 2073 | -7/Zion | Learned location of 1 exit from Factory 2284 | -7/Zion | Found Prototype Special Weapon 2284 | -7/Zion | Identified RU-N14's Throwing Claymores 2290 | -7/Zion | Found RU-N14's Throwing Claymores 2294 | -7/Zion | Found RU-N14's Throwing Claymores 2586 | -7/Zion | Learned location of Armory (-3) 3623 | -7/Zion | Imprinted 3625 | -7/Zion | Declared Zion's savior 4247 | -7/Zion | Discovered new exit (range 13) 4278 | -7/Zion | Entered Proximity Caves 4278 | -6/Proximity Caves | Accompanied by 4 allies 4279 | -6/Proximity Caves | Identified exit to Factory 4302 | -6/Proximity Caves | Learned Factory emergency access door positions 4461 | -6/Proximity Caves | Attracted the attention of an 0b10 base 4477 | -6/Proximity Caves | Lost 4 allies 5512 | -6/Proximity Caves | Spotted B-75 Beast 5519 | -6/Proximity Caves | Core integrity fell below 50% 5521 | -6/Proximity Caves | Attracted the attention of an 0b10 checkpoint 5534 | -6/Proximity Caves | Core integrity fell below 20% 5549 | -6/Proximity Caves | Destroyed by B-75 Beast with Magnetic Acceleration Cannon Last Messages --------------- 04643_ Dropped Aluminum Leg. 04652_ Acquired Corrupted Flexi-carbon Leg. 05315_ Acquired 10 matter. 05513_ Knocked back. 05518_ RU-N14's Throwing Claymores expended. 05519_ Particle Charger destroyed. 05521_ Y-54 Guardian: "INTERCEPTING UNREGISTERED DERELICT." 05522_ Aluminum Leg destroyed. 05525_ Integrated Corrupted Flexi-carbon Leg (+3). 05526_ RU-N14's Throwing Claymores expended. 05529_ Imp. Aluminum Leg destroyed. 05530_ Acquired 1 matter. 05533_ Knocked back. 05540_ Hvy. Ion Engine destroyed. 05549_ B-75 Beast suffers critical hit (Destroy). 05549_ Hvy. Riot Gun destroyed. 05549_ Beam Cannon destroyed. Map ----- +----------------------------------------------------+ | ?????????????????????????????????????????????????? | | ?????????????????????????????????????????????????? | | ?????????????????????????????????????????????????? | | ?????????????????????????????????????????????????? | | ?????????????????????????????????????????????????? | | ?????????????????????????????????????????????????? | | ?????????????????????????????????????????????????? | | ?????????????????????????????????????????????????? | | ?????????????????????????????????????????????????? | | ??????????????????? ?????????????????????????????? | | ??????????????????? ????????????????????????????? | | ??????????????????? ????????????????????????????? | | ???????????????????# ????????????????????????????? | | ???????????????????# ???????????????????????????? | | ???????????????????# ???????????????????????????? | | ???????????????????# ???????????????????????????? | | ???????????????????# Y???????????????????????????? | | ?????????? ??????# #??????????????????????????? | | ???????????? ###??# ##????????????????????????? | | ??????????#### ## ###??????????????????????? | | ?????????## s s ##????????? ?????????? | | ?????????# ##??#### ?????????? | | ??????????# % ;## ????????? | | ??????????# ????????? | | ??????????# #" % BB ????????? | | ????????????????## %###@;;;;BB ????????? | | ?????????????????# ??#%##### ????????? | | ?????????????????# ???# #?????? ??????????? | | ????????????????# ????# #????????? ???????????? | | ???????????????# ???### #??????????????????????? | | ???????????????# #???# #??????????????????????? | | ???????????? #??### #??????????????????????? | | ?????????? ???# ###??????????????????????? | | ????????# ????# ###????????????????????????? | | ????????## ?????# #??????????????????????????? | | ?? ??####?????????# #??????????????????????????? | | ??# ### ##????????# #??????????????????????????? | | ## ######???# #??????????????????????????? | | ##??# #??????????????????????????? | | #### #??????????????????????????? | | #??????????????????????????? | | ???# #??????????????????????????? | | ???##### ########??????????????????????????? | | ##?????## ##?????????????????????????????????? | | #####??# ###########????????????????????????? | | #### #????????????????????????? | | #????????????????????????? | | ######## #????????????????????????? | | #??????# #????????????????????????? | | #??????# #????????????????????????? | +----------------------------------------------------+ Best States ------------- Heat Dissipation 38 Energy Generation 14 Energy Capacity 280 Matter Stores 300 Matter Capacity 300 Sight Range 16 Terrain Scan Density 10 Evasion (%) 55 Recoil Reduction 2 Particle Charging 15 Trap Extractor Capacity 4 Item Schematics ----------------- Rocket Launcher | -9/Materials | Scanalyzed Robot Schematics ------------------ None Fabricated ------------ Nothing Alien Tech Used ----------------- None Achievements -------------- Robot Respite The One Challenges ------------ None Game ------ Seed LobotomyGrenadePod Manual? 0 Play Time 00:55:35 Cumulative 6.7 hours Start 2024.04.03 @ 06:03:10 End 2024.04.03 @ 09:36:05 Sessions 5 Manual Loads 0 Difficulty Rogue Special Mode None Game No. 7 Rogue 7 Adventurer 0 Explorer 0 Win Type - Total 0 Types 0/0/0/0/0/0/0/0/0 Lore% 4 Gallery% 11 Achievement% 11 Wizard Run 0 Options --------- Layout 1 ASCII 0 Keyboard 0 Movement Mouse Keybinds 0 Fullscreen 1 Font 32/SmallcapsGlow Map View 50x35 Zoom Use 2% Tactical HUD 1 Map Filters NONE Filters NONE Steam 1 RUN: 4dc240f2-0f71-409f-a762-3ab5b2ab161b